[Event "December 19 Late 2023"]
[Site "https://www.chess.com"]
[Date "2023.12.19"]
[Round "6"]
[White "Janaszak, Dawid"]
[Black "Filgueira, Hernan"]
[Result "0-1"]
[Board "59"]
[TimeControl "180+1"]
[WhiteFideId "1119206"]
[BlackFideId "101770"]
[WhiteElo "2218"]
[BlackElo "2363"]
[WhiteTeam "POL"]
[BlackTeam "ARG"]
[WhiteClock "0:00:04"]
[BlackClock "0:00:36"]

1. e4 {[%clk 0:03:00]}  e5 {[%clk 0:02:59]} 2. Nf3 {[%clk 0:03:00]}  Nc6 {[%clk 0:02:59]} 3. Bc4 {[%clk 0:03:01]}  Nf6 {[%clk 0:02:58]} 4. d4 {[%clk 0:03:01]}  exd4 {[%clk 0:02:55]} 5. Ng5 {[%clk 0:03:01]}  d5 {[%clk 0:02:49]} 6. exd5 {[%clk 0:03:02]}  Ne5 {[%clk 0:02:48]} 7. Qxd4 {[%clk 0:02:54]}  Nxc4 {[%clk 0:02:44]} 8. Qxc4 {[%clk 0:02:55]}  Qxd5 {[%clk 0:02:37]} 9. Qe2+ {[%clk 0:02:53]}  Be7 {[%clk 0:02:32]} 10. Nc3 {[%clk 0:02:49]}  Qd8 {[%clk 0:02:21]} 11. Bf4 {[%clk 0:02:45]}  O-O {[%clk 0:02:12]} 12. O-O {[%clk 0:02:40]}  Re8 {[%clk 0:02:08]} 13. Rad1 {[%clk 0:02:28]}  Bd6 {[%clk 0:02:02]} 14. Qd3 {[%clk 0:02:28]}  Bg4 {[%clk 0:01:57]} 15. Bxd6 {[%clk 0:01:56]}  Bxd1 {[%clk 0:01:54]} 16. Nd5 {[%clk 0:01:52]}  Qxd6 {[%clk 0:01:37]} 17. Nxf6+ {[%clk 0:01:52]}  Qxf6 {[%clk 0:01:29]} 18. Qxh7+ {[%clk 0:01:52]}  Kf8 {[%clk 0:01:29]} 19. Qh8+ {[%clk 0:01:51]}  Ke7 {[%clk 0:01:29]} 20. Re1+ {[%clk 0:01:52]}  Kd7 {[%clk 0:01:26]} 21. Rxd1+ {[%clk 0:01:00]}  Kc6 {[%clk 0:01:23]} 22. Qh4 {[%clk 0:00:57]}  b6 {[%clk 0:01:14]} 23. Qc4+ {[%clk 0:00:46]}  Kb7 {[%clk 0:01:14]} 24. h4 {[%clk 0:00:28]}  Rad8 {[%clk 0:01:07]} 25. Rf1 {[%clk 0:00:27]}  Rd7 {[%clk 0:01:05]} 26. c3 {[%clk 0:00:24]}  Qc6 {[%clk 0:00:59]} 27. Qg4 {[%clk 0:00:19]}  f6 {[%clk 0:00:58]} 28. Nf3 {[%clk 0:00:19]}  Re4 {[%clk 0:00:53]} 29. Qg6 {[%clk 0:00:16]}  Rde7 {[%clk 0:00:50]} 30. Nd4 {[%clk 0:00:17]}  Qc4 {[%clk 0:00:49]} 31. g3 {[%clk 0:00:14]}  Qd3 {[%clk 0:00:45]} 32. Qh5 {[%clk 0:00:08]}  Qc4 {[%clk 0:00:42]} 33. Qf5 {[%clk 0:00:07]}  a6 {[%clk 0:00:40]} 34. a3 {[%clk 0:00:06]}  R4e5 {[%clk 0:00:38]} 35. Qf3+ {[%clk 0:00:06]}  Qd5 {[%clk 0:00:38]} 36. Qf4 {[%clk 0:00:06]}  Re1 {[%clk 0:00:37]} 37. Qd2 {[%clk 0:00:04]}  Rxf1+ {[%clk 0:00:37]} 38. Kh2 {[%clk 0:00:04]}  Qh1# {[%clk 0:00:36]} 0-1

[Event "December 19 Late 2023"]
[Site "https://www.chess.com"]
[Date "2023.12.19"]
[Round "6"]
[White "Federzoni, Enzo"]
[Black "Karttunen, Mika"]
[Result "0-1"]
[Board "62"]
[TimeControl "180+1"]
[WhiteFideId "2173301"]
[BlackFideId "502081"]
[WhiteElo "2053"]
[BlackElo "2396"]
[WhiteTeam "BRA"]
[BlackTeam "FIN"]
[WhiteClock "0:01:00"]
[BlackClock "0:01:48"]

1. e4 {[%clk 0:03:00]}  e6 {[%clk 0:02:57]} 2. d4 {[%clk 0:03:00]}  d5 {[%clk 0:02:57]} 3. exd5 {[%clk 0:03:01]}  exd5 {[%clk 0:02:57]} 4. Bd3 {[%clk 0:02:59]}  Nc6 {[%clk 0:02:56]} 5. c3 {[%clk 0:02:48]}  Bd6 {[%clk 0:02:51]} 6. Qf3 {[%clk 0:02:46]}  Nge7 {[%clk 0:02:49]} 7. Ne2 {[%clk 0:02:36]}  Be6 {[%clk 0:02:42]} 8. O-O {[%clk 0:02:35]}  Qd7 {[%clk 0:02:42]} 9. Bf4 {[%clk 0:02:34]}  O-O-O {[%clk 0:02:40]} 10. Bxd6 {[%clk 0:02:34]}  Qxd6 {[%clk 0:02:41]} 11. Qg3 {[%clk 0:02:32]}  Bf5 {[%clk 0:02:34]} 12. Qxd6 {[%clk 0:02:29]}  Rxd6 {[%clk 0:02:33]} 13. Bxf5+ {[%clk 0:02:27]}  Nxf5 {[%clk 0:02:33]} 14. Nd2 {[%clk 0:02:27]}  g5 {[%clk 0:02:30]} 15. Rfe1 {[%clk 0:02:25]}  f6 {[%clk 0:02:19]} 16. b4 {[%clk 0:02:18]}  h5 {[%clk 0:02:17]} 17. Ng3 {[%clk 0:02:15]}  Ng7 {[%clk 0:02:17]} 18. h3 {[%clk 0:02:13]}  h4 {[%clk 0:02:16]} 19. Ngf1 {[%clk 0:02:11]}  Ne6 {[%clk 0:02:10]} 20. Re3 {[%clk 0:02:06]}  Ne7 {[%clk 0:02:02]} 21. Rae1 {[%clk 0:02:06]}  Kd7 {[%clk 0:02:02]} 22. Nb3 {[%clk 0:02:02]}  b6 {[%clk 0:02:02]} 23. a4 {[%clk 0:02:01]}  Nf5 {[%clk 0:02:00]} 24. R3e2 {[%clk 0:02:01]}  Nf4 {[%clk 0:02:00]} 25. Rd2 {[%clk 0:01:56]}  Rc6 {[%clk 0:01:55]} 26. Ne3 {[%clk 0:01:52]}  Re8 {[%clk 0:01:52]} 27. Rc2 {[%clk 0:01:35]}  Rce6 {[%clk 0:01:50]} 28. Nc1 {[%clk 0:01:00]}  Nxe3 {[%clk 0:01:49]} 29. f3 {[%clk 0:01:00]}  Nxc2 {[%clk 0:01:48]} 0-1

[Event "December 19 Late 2023"]
[Site "https://www.chess.com"]
[Date "2023.12.19"]
[Round "6"]
[White "Vlassov, Nikolai"]
[Black "Lopusiewicz, Piotr"]
[Result "1-0"]
[Board "63"]
[TimeControl "180+1"]
[WhiteFideId "4103360"]
[BlackFideId "1116029"]
[WhiteElo "2351"]
[BlackElo "2286"]
[WhiteTeam "FID"]
[BlackTeam "POL"]
[WhiteClock "0:01:03"]
[BlackClock "0:00:02"]

1. e4 {[%clk 0:03:00]}  c5 {[%clk 0:02:57]} 2. c3 {[%clk 0:03:00]}  d5 {[%clk 0:02:54]} 3. exd5 {[%clk 0:03:01]}  Qxd5 {[%clk 0:02:54]} 4. d4 {[%clk 0:03:01]}  Nf6 {[%clk 0:02:54]} 5. Nf3 {[%clk 0:03:01]}  e6 {[%clk 0:02:52]} 6. a3 {[%clk 0:03:01]}  a6 {[%clk 0:02:43]} 7. Be3 {[%clk 0:03:00]}  cxd4 {[%clk 0:02:42]} 8. cxd4 {[%clk 0:03:01]}  Nc6 {[%clk 0:02:39]} 9. Nc3 {[%clk 0:03:01]}  Qd6 {[%clk 0:02:38]} 10. Qc2 {[%clk 0:03:01]}  Be7 {[%clk 0:02:37]} 11. Rc1 {[%clk 0:02:59]}  O-O {[%clk 0:02:31]} 12. Bd3 {[%clk 0:03:00]}  h6 {[%clk 0:02:30]} 13. O-O {[%clk 0:02:59]}  Bd7 {[%clk 0:02:26]} 14. b4 {[%clk 0:02:56]}  Rac8 {[%clk 0:02:26]} 15. Qd2 {[%clk 0:02:57]}  Qb8 {[%clk 0:01:53]} 16. Bf4 {[%clk 0:02:53]}  Bd6 {[%clk 0:01:52]} 17. Bxh6 {[%clk 0:02:51]}  Ng4 {[%clk 0:01:29]} 18. Bxg7 {[%clk 0:02:39]}  Bf4 {[%clk 0:01:28]} 19. Qe2 {[%clk 0:02:32]}  Kxg7 {[%clk 0:01:23]} 20. h3 {[%clk 0:02:10]}  Bxc1 {[%clk 0:01:14]} 21. Rxc1 {[%clk 0:02:02]}  Nxd4 {[%clk 0:01:12]} 22. Qe4 {[%clk 0:01:54]}  Nxf3+ {[%clk 0:01:07]} 23. Qxf3 {[%clk 0:01:31]}  Qh2+ {[%clk 0:01:04]} 24. Kf1 {[%clk 0:01:31]}  Ne5 {[%clk 0:00:52]} 25. Qe3 {[%clk 0:01:24]}  f6 {[%clk 0:00:39]} 26. Be4 {[%clk 0:01:20]}  Rxc3 {[%clk 0:00:26]} 27. Rxc3 {[%clk 0:01:15]}  Qh1+ {[%clk 0:00:25]} 28. Ke2 {[%clk 0:01:15]}  Bb5+ {[%clk 0:00:25]} 29. Kd2 {[%clk 0:01:11]}  Rd8+ {[%clk 0:00:25]} 30. Kc2 {[%clk 0:01:10]}  Qd1+ {[%clk 0:00:22]} 31. Kb2 {[%clk 0:01:10]}  Rd2+ {[%clk 0:00:19]} 32. Bc2 {[%clk 0:01:11]}  Rxc2+ {[%clk 0:00:13]} 33. Rxc2 {[%clk 0:01:10]}  Nc4+ {[%clk 0:00:10]} 34. Rxc4 {[%clk 0:01:09]}  Bxc4 {[%clk 0:00:11]} 35. Qg3+ {[%clk 0:01:08]}  Kh6 {[%clk 0:00:06]} 36. Qf4+ {[%clk 0:01:05]}  Kg6 {[%clk 0:00:05]} 37. Qxc4 {[%clk 0:01:05]}  Qd2+ {[%clk 0:00:02]} 38. Qc2+ {[%clk 0:01:03]} 1-0

[Event "December 19 Late 2023"]
[Site "https://www.chess.com"]
[Date "2023.12.19"]
[Round "6"]
[White "Melian, Juan Sebastian"]
[Black "Storn, Justin"]
[Result "1-0"]
[Board "64"]
[TimeControl "180+1"]
[WhiteFideId "3706575"]
[BlackFideId "30922720"]
[WhiteElo "2098"]
[BlackElo "2425"]
[WhiteTeam "PAR"]
[BlackTeam "USA"]
[WhiteClock "0:01:11"]
[BlackClock "0:00:00"]

1. e4 {[%clk 0:02:44]}  d6 {[%clk 0:02:55]} 2. d4 {[%clk 0:02:44]}  Nf6 {[%clk 0:02:56]} 3. Nc3 {[%clk 0:02:44]}  g6 {[%clk 0:02:56]} 4. Be3 {[%clk 0:02:43]}  Bg7 {[%clk 0:02:56]} 5. h3 {[%clk 0:02:44]}  O-O {[%clk 0:02:55]} 6. Qd2 {[%clk 0:02:44]}  c6 {[%clk 0:02:51]} 7. Nf3 {[%clk 0:02:42]}  b5 {[%clk 0:02:51]} 8. Bd3 {[%clk 0:02:43]}  b4 {[%clk 0:02:42]} 9. Ne2 {[%clk 0:02:43]}  a5 {[%clk 0:02:40]} 10. Ng3 {[%clk 0:02:39]}  Ba6 {[%clk 0:02:40]} 11. Bxa6 {[%clk 0:02:37]}  Nxa6 {[%clk 0:02:41]} 12. O-O {[%clk 0:02:34]}  c5 {[%clk 0:02:40]} 13. Rad1 {[%clk 0:02:15]}  Qc7 {[%clk 0:02:23]} 14. d5 {[%clk 0:02:12]}  c4 {[%clk 0:02:20]} 15. Bd4 {[%clk 0:02:10]}  Rfc8 {[%clk 0:02:06]} 16. Rfe1 {[%clk 0:02:08]}  c3 {[%clk 0:02:03]} 17. bxc3 {[%clk 0:02:01]}  bxc3 {[%clk 0:02:04]} 18. Qe2 {[%clk 0:02:02]}  Rcb8 {[%clk 0:01:39]} 19. Rd3 {[%clk 0:01:54]}  Nd7 {[%clk 0:01:16]} 20. Rxc3 {[%clk 0:01:53]}  Qxc3 {[%clk 0:01:07]} 21. Bxc3 {[%clk 0:01:53]}  Bxc3 {[%clk 0:01:07]} 22. Rd1 {[%clk 0:01:54]}  Rb2 {[%clk 0:00:54]} 23. a3 {[%clk 0:01:54]}  Nac5 {[%clk 0:00:42]} 24. Nd4 {[%clk 0:01:35]}  Nb6 {[%clk 0:00:04]} 25. Nc6 {[%clk 0:01:32]}  Bf6 {[%clk 0:00:04]} 26. e5 {[%clk 0:01:30]}  dxe5 {[%clk 0:00:04]} 27. Nxe5 {[%clk 0:01:29]}  Rd8 {[%clk 0:00:02]} 28. Ng4 {[%clk 0:01:18]}  Bg7 {[%clk 0:00:02]} 29. Qxe7 {[%clk 0:01:16]}  Rc8 {[%clk 0:00:02]} 30. Nf6+ {[%clk 0:01:15]}  Bxf6 {[%clk 0:00:02]} 31. Qxf6 {[%clk 0:01:15]}  Rxc2 {[%clk 0:00:02]} 32. d6 {[%clk 0:01:16]}  Nbd7 {[%clk 0:00:02]} 33. Qf4 {[%clk 0:01:12]}  Ra2 {[%clk 0:00:02]} 34. Ne4 {[%clk 0:01:11]}  Nxe4 {[%clk 0:00:02]} 35. Qxe4 {[%clk 0:01:12]}  Rxa3 {[%clk 0:00:00]} 36. Qb7 {[%clk 0:01:11]} 1-0

[Event "December 19 Late 2023"]
[Site "https://www.chess.com"]
[Date "2023.12.19"]
[Round "6"]
[White "Pace, Christopher"]
[Black "Omelja, Artem"]
[Result "0-1"]
[Board "68"]
[TimeControl "180+1"]
[WhiteFideId "2610167"]
[BlackFideId "14119846"]
[WhiteElo "2372"]
[BlackElo "2404"]
[WhiteTeam "CAN"]
[BlackTeam "UKR"]
[WhiteClock "0:00:12"]
[BlackClock "0:00:17"]

1. e4 {[%clk 0:03:00]}  c6 {[%clk 0:02:43]} 2. d4 {[%clk 0:03:00]}  d5 {[%clk 0:02:42]} 3. e5 {[%clk 0:03:01]}  Bf5 {[%clk 0:02:42]} 4. Nf3 {[%clk 0:02:59]}  e6 {[%clk 0:02:42]} 5. Be2 {[%clk 0:02:59]}  c5 {[%clk 0:02:31]} 6. O-O {[%clk 0:02:58]}  Nc6 {[%clk 0:02:06]} 7. c3 {[%clk 0:02:57]}  cxd4 {[%clk 0:02:05]} 8. cxd4 {[%clk 0:02:56]}  Nge7 {[%clk 0:02:06]} 9. Be3 {[%clk 0:02:53]}  Ng6 {[%clk 0:02:06]} 10. Nc3 {[%clk 0:02:50]}  Be7 {[%clk 0:02:02]} 11. Rc1 {[%clk 0:02:50]}  f6 {[%clk 0:02:00]} 12. exf6 {[%clk 0:02:45]}  Bxf6 {[%clk 0:02:01]} 13. a3 {[%clk 0:02:44]}  O-O {[%clk 0:02:00]} 14. b4 {[%clk 0:02:43]}  a6 {[%clk 0:02:00]} 15. h3 {[%clk 0:02:31]}  Nh4 {[%clk 0:01:57]} 16. Nh2 {[%clk 0:02:01]}  Bg6 {[%clk 0:01:52]} 17. Ng4 {[%clk 0:01:59]}  Nf5 {[%clk 0:01:51]} 18. Qd2 {[%clk 0:01:53]}  Nfxd4 {[%clk 0:01:45]} 19. Nxf6+ {[%clk 0:01:39]}  Qxf6 {[%clk 0:01:41]} 20. Bd1 {[%clk 0:01:39]}  Nf5 {[%clk 0:01:39]} 21. Bg5 {[%clk 0:01:33]}  Qf7 {[%clk 0:01:37]} 22. Na4 {[%clk 0:01:31]}  Rae8 {[%clk 0:01:23]} 23. Nc5 {[%clk 0:01:27]}  e5 {[%clk 0:01:17]} 24. Bb3 {[%clk 0:01:27]}  Ncd4 {[%clk 0:01:13]} 25. Ba2 {[%clk 0:01:21]}  b6 {[%clk 0:01:09]} 26. Nxa6 {[%clk 0:01:20]}  Nd6 {[%clk 0:00:57]} 27. f3 {[%clk 0:00:50]}  Nc4 {[%clk 0:00:52]} 28. Bxc4 {[%clk 0:00:42]}  dxc4 {[%clk 0:00:53]} 29. Rce1 {[%clk 0:00:24]}  Bd3 {[%clk 0:00:39]} 30. Rf2 {[%clk 0:00:23]}  Qg6 {[%clk 0:00:39]} 31. Kh1 {[%clk 0:00:20]}  e4 {[%clk 0:00:34]} 32. Be3 {[%clk 0:00:17]}  Nb3 {[%clk 0:00:26]} 33. Qc3 {[%clk 0:00:17]}  exf3 {[%clk 0:00:18]} 34. gxf3 {[%clk 0:00:18]}  Qh5 {[%clk 0:00:17]} 35. Kh2 {[%clk 0:00:17]}  Rxf3 {[%clk 0:00:16]} 36. Rxf3 {[%clk 0:00:16]}  Qxf3 {[%clk 0:00:17]} 37. Rg1 {[%clk 0:00:15]}  g6 {[%clk 0:00:17]} 38. Bh6 {[%clk 0:00:12]}  Re2+ {[%clk 0:00:17]} 0-1

[Event "December 19 Late 2023"]
[Site "https://www.chess.com"]
[Date "2023.12.19"]
[Round "6"]
[White "Paragua, Megan Althea"]
[Black "Sivakumar, Shaaketh"]
[Result "0-1"]
[Board "71"]
[TimeControl "180+1"]
[WhiteFideId "30973007"]
[BlackFideId "30940176"]
[WhiteElo "1961"]
[BlackElo "2292"]
[WhiteTeam "USA"]
[BlackTeam "USA"]
[WhiteClock "0:00:00"]
[BlackClock "0:01:18"]

1. e4 {[%clk 0:03:00]}  e6 {[%clk 0:02:58]} 2. d4 {[%clk 0:02:59]}  d5 {[%clk 0:02:58]} 3. Nd2 {[%clk 0:02:58]}  c5 {[%clk 0:02:58]} 4. exd5 {[%clk 0:02:57]}  exd5 {[%clk 0:02:59]} 5. dxc5 {[%clk 0:02:49]}  Bxc5 {[%clk 0:02:58]} 6. Bb5+ {[%clk 0:02:47]}  Nc6 {[%clk 0:02:58]} 7. Ngf3 {[%clk 0:02:45]}  Bxf2+ {[%clk 0:02:54]} 8. Kf1 {[%clk 0:02:38]}  Bb6 {[%clk 0:02:50]} 9. Ne5 {[%clk 0:02:20]}  Ne7 {[%clk 0:02:44]} 10. Ndf3 {[%clk 0:01:50]}  O-O {[%clk 0:02:43]} 11. Nxc6 {[%clk 0:01:38]}  bxc6 {[%clk 0:02:37]} 12. Bd3 {[%clk 0:01:35]}  Ng6 {[%clk 0:02:36]} 13. Bg5 {[%clk 0:01:22]}  Qd6 {[%clk 0:02:33]} 14. h4 {[%clk 0:01:16]}  Bg4 {[%clk 0:02:31]} 15. h5 {[%clk 0:01:09]}  Ne5 {[%clk 0:02:28]} 16. Bf4 {[%clk 0:00:56]}  Qc5 {[%clk 0:02:27]} 17. Qe2 {[%clk 0:00:45]}  Rae8 {[%clk 0:02:22]} 18. b4 {[%clk 0:00:28]}  Nxd3 {[%clk 0:01:56]} 19. bxc5 {[%clk 0:00:22]}  Rxe2 {[%clk 0:01:55]} 20. cxd3 {[%clk 0:00:20]}  Rfe8 {[%clk 0:01:41]} 21. cxb6 {[%clk 0:00:19]}  axb6 {[%clk 0:01:42]} 22. Rh4 {[%clk 0:00:15]}  Bf5 {[%clk 0:01:40]} 23. d4 {[%clk 0:00:12]}  Bd3 {[%clk 0:01:38]} 24. Kg1 {[%clk 0:00:12]}  R8e4 {[%clk 0:01:37]} 25. Ne5 {[%clk 0:00:08]}  c5 {[%clk 0:01:32]} 26. Nxd3 {[%clk 0:00:07]}  Rxd4 {[%clk 0:01:29]} 27. Nf2 {[%clk 0:00:06]}  c4 {[%clk 0:01:26]} 28. Rc1 {[%clk 0:00:04]}  b5 {[%clk 0:01:26]} 29. Rg4 {[%clk 0:00:05]}  f5 {[%clk 0:01:25]} 30. Rh4 {[%clk 0:00:03]}  Rxa2 {[%clk 0:01:24]} 31. Kf1 {[%clk 0:00:03]}  b4 {[%clk 0:01:24]} 32. g3 {[%clk 0:00:02]}  b3 {[%clk 0:01:24]} 33. Re1 {[%clk 0:00:02]}  b2 {[%clk 0:01:22]} 34. Be5 {[%clk 0:00:03]}  Ra1 {[%clk 0:01:18]} 35. Kg2 {[%clk 0:00:01]}  Rxe1 {[%clk 0:01:18]} 36. Bxd4 {[%clk 0:00:00]}  b1=Q {[%clk 0:01:18]} 0-1

[Event "December 19 Late 2023"]
[Site "https://www.chess.com"]
[Date "2023.12.19"]
[Round "6"]
[White "Polster, Christian"]
[Black "Hajiyev, Kanan"]
[Result "0-1"]
[Board "72"]
[TimeControl "180+1"]
[WhiteFideId "12965081"]
[BlackFideId "13404148"]
[WhiteElo "2141"]
[BlackElo "2102"]
[WhiteTeam "GER"]
[BlackTeam "AZE"]
[WhiteClock "0:00:00"]
[BlackClock "0:01:14"]

1. d4 {[%clk 0:02:54]}  d5 {[%clk 0:02:58]} 2. c4 {[%clk 0:02:54]}  c6 {[%clk 0:02:59]} 3. cxd5 {[%clk 0:02:54]}  cxd5 {[%clk 0:02:59]} 4. Nc3 {[%clk 0:02:53]}  Nf6 {[%clk 0:03:00]} 5. f3 {[%clk 0:02:54]}  a6 {[%clk 0:03:01]} 6. e4 {[%clk 0:02:54]}  dxe4 {[%clk 0:02:58]} 7. fxe4 {[%clk 0:02:54]}  e5 {[%clk 0:02:58]} 8. d5 {[%clk 0:02:52]}  Bc5 {[%clk 0:02:58]} 9. Bd3 {[%clk 0:02:31]}  Ng4 {[%clk 0:02:52]} 10. Nh3 {[%clk 0:02:31]}  Qh4+ {[%clk 0:02:50]} 11. Kf1 {[%clk 0:02:08]}  Nf2 {[%clk 0:02:43]} 12. Bg5 {[%clk 0:01:44]}  Qxh3 {[%clk 0:02:34]} 13. gxh3 {[%clk 0:01:43]}  Bxh3+ {[%clk 0:02:33]} 14. Ke1 {[%clk 0:01:41]}  Nxd1 {[%clk 0:02:28]} 15. Kxd1 {[%clk 0:01:36]}  Bg2 {[%clk 0:02:20]} 16. Re1 {[%clk 0:01:28]}  Bf2 {[%clk 0:02:20]} 17. Kc2 {[%clk 0:01:20]}  Bxe1 {[%clk 0:02:13]} 18. Rxe1 {[%clk 0:01:21]}  f6 {[%clk 0:02:10]} 19. Be3 {[%clk 0:01:08]}  O-O {[%clk 0:02:04]} 20. Rg1 {[%clk 0:00:58]}  Bh3 {[%clk 0:02:03]} 21. Bh6 {[%clk 0:00:56]}  Rf7 {[%clk 0:02:02]} 22. Bc4 {[%clk 0:00:34]}  b5 {[%clk 0:02:01]} 23. Bb3 {[%clk 0:00:33]}  Kh8 {[%clk 0:01:54]} 24. Be3 {[%clk 0:00:29]}  Nd7 {[%clk 0:01:40]} 25. Rg3 {[%clk 0:00:19]}  Bf1 {[%clk 0:01:40]} 26. Rf3 {[%clk 0:00:18]}  Bc4 {[%clk 0:01:38]} 27. Bxc4 {[%clk 0:00:18]}  bxc4 {[%clk 0:01:39]} 28. Na4 {[%clk 0:00:17]}  Rc8 {[%clk 0:01:38]} 29. Kc3 {[%clk 0:00:17]}  g6 {[%clk 0:01:36]} 30. Nb6 {[%clk 0:00:12]}  Nxb6 {[%clk 0:01:36]} 31. Bxb6 {[%clk 0:00:12]}  Kg7 {[%clk 0:01:33]} 32. d6 {[%clk 0:00:12]}  Rd7 {[%clk 0:01:31]} 33. Bc7 {[%clk 0:00:12]}  Rcxc7 {[%clk 0:01:31]} 34. dxc7 {[%clk 0:00:12]}  Rxc7 {[%clk 0:01:32]} 35. Rf2 {[%clk 0:00:10]}  Kf7 {[%clk 0:01:30]} 36. Rd2 {[%clk 0:00:08]}  f5 {[%clk 0:01:27]} 37. Rd6 {[%clk 0:00:06]}  f4 {[%clk 0:01:25]} 38. Rxa6 {[%clk 0:00:05]}  f3 {[%clk 0:01:25]} 39. Kd2 {[%clk 0:00:04]}  Rd7+ {[%clk 0:01:21]} 40. Ke3 {[%clk 0:00:04]}  Rd3+ {[%clk 0:01:22]} 41. Kf2 {[%clk 0:00:04]}  c3 {[%clk 0:01:20]} 42. bxc3 {[%clk 0:00:03]}  Rxc3 {[%clk 0:01:21]} 43. Ra7+ {[%clk 0:00:02]}  Kf6 {[%clk 0:01:13]} 44. Rxh7 {[%clk 0:00:00]}  Kg5 {[%clk 0:01:14]} 0-1

[Event "December 19 Late 2023"]
[Site "https://www.chess.com"]
[Date "2023.12.19"]
[Round "6"]
[White "Ambartsumova, Karina"]
[Black "petr577"]
[Result "0-1"]
[Board "73"]
[TimeControl "180+1"]
[WhiteFideId "4166299"]
[WhiteElo "2240"]
[BlackElo "2321"]
[WhiteTeam "RUS"]
[WhiteClock "0:00:00"]
[BlackClock "0:00:02"]

1. d4 {[%clk 0:03:00]}  Nf6 {[%clk 0:02:59]} 2. c4 {[%clk 0:03:01]}  e5 {[%clk 0:03:00]} 3. dxe5 {[%clk 0:02:59]}  Ng4 {[%clk 0:03:00]} 4. Bf4 {[%clk 0:03:00]}  g5 {[%clk 0:03:00]} 5. Bg3 {[%clk 0:03:00]}  Nc6 {[%clk 0:03:01]} 6. Nf3 {[%clk 0:03:00]}  Bg7 {[%clk 0:03:01]} 7. Nc3 {[%clk 0:02:57]}  Ngxe5 {[%clk 0:03:02]} 8. e3 {[%clk 0:02:56]}  d6 {[%clk 0:03:00]} 9. Be2 {[%clk 0:02:49]}  O-O {[%clk 0:02:56]} 10. O-O {[%clk 0:02:44]}  Be6 {[%clk 0:02:46]} 11. Nd2 {[%clk 0:02:36]}  f5 {[%clk 0:02:37]} 12. f4 {[%clk 0:02:20]}  Ng4 {[%clk 0:02:31]} 13. Bxg4 {[%clk 0:02:11]}  fxg4 {[%clk 0:02:32]} 14. Nce4 {[%clk 0:01:51]}  gxf4 {[%clk 0:02:24]} 15. exf4 {[%clk 0:01:49]}  Bxb2 {[%clk 0:02:12]} 16. Rb1 {[%clk 0:01:49]}  Bd4+ {[%clk 0:02:11]} 17. Kh1 {[%clk 0:01:49]}  b6 {[%clk 0:02:05]} 18. Rb5 {[%clk 0:01:45]}  Ne7 {[%clk 0:01:49]} 19. Rg5+ {[%clk 0:01:26]}  Kh8 {[%clk 0:01:49]} 20. Nb3 {[%clk 0:01:20]}  Bg7 {[%clk 0:01:42]} 21. Nd4 {[%clk 0:01:15]}  Bxc4 {[%clk 0:01:34]} 22. Qxg4 {[%clk 0:01:03]}  Bxd4 {[%clk 0:00:52]} 23. Rc1 {[%clk 0:00:55]}  d5 {[%clk 0:00:30]} 24. Bh4 {[%clk 0:00:44]}  dxe4 {[%clk 0:00:21]} 25. Rxc4 {[%clk 0:00:44]}  Bf6 {[%clk 0:00:19]} 26. Rxe4 {[%clk 0:00:32]}  Qd3 {[%clk 0:00:08]} 27. Re1 {[%clk 0:00:10]}  Bxg5 {[%clk 0:00:09]} 28. Bxg5 {[%clk 0:00:11]}  Nf5 {[%clk 0:00:08]} 29. Qh5 {[%clk 0:00:09]}  Qc3 {[%clk 0:00:05]} 30. Rd1 {[%clk 0:00:07]}  Rae8 {[%clk 0:00:04]} 31. Bh4 {[%clk 0:00:06]}  Nxh4 {[%clk 0:00:03]} 32. Qxh4 {[%clk 0:00:07]}  Qc2 {[%clk 0:00:02]} 33. Rf1 {[%clk 0:00:07]}  Qe2 {[%clk 0:00:02]} 34. Rg1 {[%clk 0:00:07]}  Qe4 {[%clk 0:00:01]} 35. Rf1 {[%clk 0:00:07]}  Rxf4 {[%clk 0:00:01]} 36. Qxf4 {[%clk 0:00:00]}  Qxf4 {[%clk 0:00:02]} 0-1

[Event "December 19 Late 2023"]
[Site "https://www.chess.com"]
[Date "2023.12.19"]
[Round "6"]
[White "Postny, Evgeny"]
[Black "Serban, Cristian-Stefan"]
[Result "1-0"]
[Board "76"]
[TimeControl "180+1"]
[WhiteFideId "2804344"]
[BlackFideId "1241443"]
[WhiteElo "2505"]
[BlackElo "2040"]
[WhiteTeam "ISR"]
[BlackTeam "ROU"]
[WhiteClock "0:00:34"]
[BlackClock "0:00:00"]

1. e4 {[%clk 0:03:00]}  e5 {[%clk 0:03:00]} 2. Nf3 {[%clk 0:03:00]}  Nc6 {[%clk 0:03:00]} 3. Bb5 {[%clk 0:03:01]}  Nf6 {[%clk 0:03:01]} 4. O-O {[%clk 0:02:59]}  Nxe4 {[%clk 0:02:52]} 5. d4 {[%clk 0:03:00]}  Nd6 {[%clk 0:02:47]} 6. Bxc6 {[%clk 0:03:00]}  dxc6 {[%clk 0:02:48]} 7. dxe5 {[%clk 0:03:01]}  Nf5 {[%clk 0:02:49]} 8. Qxd8+ {[%clk 0:03:01]}  Kxd8 {[%clk 0:02:50]} 9. Nc3 {[%clk 0:03:01]}  Ke8 {[%clk 0:02:51]} 10. h3 {[%clk 0:03:01]}  h5 {[%clk 0:02:49]} 11. Bg5 {[%clk 0:02:59]}  Be6 {[%clk 0:02:34]} 12. Rad1 {[%clk 0:02:59]}  Be7 {[%clk 0:02:30]} 13. b3 {[%clk 0:02:54]}  Rd8 {[%clk 0:02:23]} 14. Ne2 {[%clk 0:02:48]}  Bd5 {[%clk 0:02:20]} 15. Bxe7 {[%clk 0:02:48]}  Kxe7 {[%clk 0:02:10]} 16. Nfd4 {[%clk 0:02:40]}  Be6 {[%clk 0:01:58]} 17. Rfe1 {[%clk 0:02:31]}  g5 {[%clk 0:01:51]} 18. c4 {[%clk 0:02:22]}  c5 {[%clk 0:01:33]} 19. Nxe6 {[%clk 0:02:08]}  fxe6 {[%clk 0:01:31]} 20. Nc3 {[%clk 0:02:06]}  b6 {[%clk 0:01:29]} 21. Ne4 {[%clk 0:02:04]}  g4 {[%clk 0:01:22]} 22. hxg4 {[%clk 0:01:45]}  hxg4 {[%clk 0:01:21]} 23. g3 {[%clk 0:01:46]}  Nd4 {[%clk 0:01:19]} 24. Kf1 {[%clk 0:01:13]}  Nf3 {[%clk 0:00:13]} 25. Rxd8 {[%clk 0:01:12]}  Rxd8 {[%clk 0:00:14]} 26. Rc1 {[%clk 0:01:01]}  Rd4 {[%clk 0:00:12]} 27. Nc3 {[%clk 0:00:58]}  Nxe5 {[%clk 0:00:10]} 28. Rc2 {[%clk 0:00:52]}  Nf3 {[%clk 0:00:09]} 29. Ke2 {[%clk 0:00:49]}  c6 {[%clk 0:00:08]} 30. Ke3 {[%clk 0:00:49]}  Ne1 {[%clk 0:00:03]} 31. Rc1 {[%clk 0:00:46]}  Nf3 {[%clk 0:00:03]} 32. Ne4 {[%clk 0:00:43]}  Rd8 {[%clk 0:00:02]} 33. Rh1 {[%clk 0:00:42]}  Rf8 {[%clk 0:00:02]} 34. Rh7+ {[%clk 0:00:38]}  Rf7 {[%clk 0:00:03]} 35. Rh8 {[%clk 0:00:39]}  Ne5 {[%clk 0:00:03]} 36. Ra8 {[%clk 0:00:35]}  Rf3+ {[%clk 0:00:03]} 37. Ke2 {[%clk 0:00:35]}  Kf7 {[%clk 0:00:02]} 38. Ng5+ {[%clk 0:00:33]}  Kg6 {[%clk 0:00:03]} 39. Nxf3 {[%clk 0:00:34]}  gxf3+ {[%clk 0:00:00]} 40. Ke3 {[%clk 0:00:34]} 1-0